[Event "Turkish Championship 2022"]
[Site "Kemer-Antalya"]
[Date "2022.11.25"]
[Round "1.1"]
[White "Yaran, Siar"]
[Black "Yavuz, Efe Metehan"]
[Result "1/2-1/2"]
[ECO "D26"]
[WhiteElo "2291"]
[BlackElo "2256"]
[Annotator "TA"]
[PlyCount "102"]
[EventDate "2022.11.25"]
[EventCountry "TUR"]
[SourceTitle "playchess.com"]
[Source "ChessBase"]
[SourceQuality "1"]
[TimeControl "40/5400+30:1800+30"]

{[%evp 20,102,8,0,0,0,0,8,39,0,0,0,0,0,0,0,0,-16,0,0,0,0,0,0,0,0,0,-15,-15,-15,0,0,0,0,0,0,0,0,0,0,0,0,0,0,0,0,0,0,0,0,0,0,0,0,0,0,0,0,8,14,20,0,0,0,0,0,0,0,0,0,0,0,0,0,0,0,0,0,0,0,0,0,0,0,0]} 1. d4 {[%emt 0:01:00]} d5 {[%emt 0:03:00]} 2. c4 {[%emt 0:00:00]} e6 {[%emt 0:01:30]} 3. Nc3 {[%emt 0:00:00]} Nf6 {[%emt 0:00:00]} 4. Bg5 {[%emt 0:00:00]} dxc4 {[%emt 0:01:00]} 5. e3 {[%emt 0:01:00]} c5 {[%emt 0:01:30]} 6. Bxc4 {[%emt 0:00:30]} cxd4 {[%emt 0:00:30]} 7. exd4 {[%emt 0:00:30]} Be7 {[%emt 0:01:30]} 8. Nf3 {[%emt 0:00:00]} O-O {[%emt 0:00:30]} 9. O-O {[%emt 0:00:00]} Nc6 {[%emt 0:00:30]} 10. a3 {[%emt 0:02:30]} a6 {[%emt 0:06:30]} 11. Rc1 {[%emt 0:27:30]} b5 {[%emt 0:19:30] D26: Queen's Gambit Accepted: 4 e3 e6 5 Bxc5 c5 sidelines.} 12. d5 {[%emt 0:03:30]} exd5 {[%emt 0:49:17]} 13. Bxd5 {[%emt 0:00:30]} Bb7 {[%emt 0:00:25] [#]} 14. Re1 $146 {[%emt 0:07:30]} (14. Bxf6 $5 Bxf6 15. Rc2 $11) ({Predecessor:} 14. Bxf6 Bxf6 15. Ne4 Rc8 16. Re1 Ba8 17. b4 h6 18. Qb3 Be7 19. Rcd1 Qb6 20. Ng3 {1-0 (42) Pranjic,M (2089)-Gatto,C (2156) ICCF email 2006}) 14... Nxd5 {[%emt 0:03:28] The position is equal.} 15. Qxd5 {[%emt 0:00:30] [#] Hoping for Bxe7.} Bxg5 {[%emt 0:04:30]} 16. Nxg5 {[%emt 0:01:30]} Qxd5 {[%emt 0:04:07]} 17. Nxd5 {[%emt 0:00:00]} Rad8 {[%emt 0:00:39]} 18. Rxc6 {[%emt 0:21:00] Ne7+ is the strong threat.} Rxd5 {[%emt 0:00:30]} (18... Rfe8 $5 19. Rxe8+ Rxe8 $11) 19. Rc7 {[%emt 0:00:00]} Rxg5 {[%emt 0:00:29]} 20. Rxb7 $11 {[%emt 0:00:00][%mdl 4096] Endgame KRR-KRR} Rg6 {[%emt 0:00:24]} 21. Re3 {[%emt 0:04:30]} Rf6 {[%emt 0:00:36]} 22. Kf1 {[%emt 0:06:30]} g6 {[%emt 0:00:14]} 23. Rf3 {[%emt 0:00:30]} Rxf3 {[%emt 0:01:11]} 24. gxf3 {[%emt 0:00:30] KR-KR} Rc8 {[%emt 0:00:08]} 25. Rb6 {[%emt 0:01:30]} Rc2 {[%emt 0:00:03]} 26. b4 {[%emt 0:00:30]} Rc3 {[%emt 0:00:37][%csl LRa3,LRf3]} 27. Rxa6 {[%emt 0:00:30]} Rxf3 {[%emt 0:00:00]} 28. Ra5 {[%emt 0:03:50]} Kg7 {[%emt 0:00:00]} 29. Ke2 {[%emt 0:03:27]} Rh3 {[%emt 0:00:12]} 30. Rxb5 {[%emt 0:03:17] [#] Black must now prevent a4.} Rxa3 {[%emt 0:00:03]} 31. Rc5 {[%emt 0:00:49]} h5 {[%emt 0:01:16]} 32. b5 {[%emt 0:02:33]} Rb3 {[%emt 0:00:03]} 33. Kd2 {[%emt 0:00:33]} h4 {[%emt 0:02:05]} 34. Kc2 {[%emt 0:00:47]} Rb4 {[%emt 0:00:23]} (34... Rf3 $2 35. b6 Rxf2+ 36. Kb3 $18) 35. Kc3 {[%emt 0:02:36]} Rb1 {[%emt 0:00:02]} 36. Kc4 {[%emt 0:05:14]} Rb2 {[%emt 0:01:13]} 37. h3 {[%emt 0:00:45]} Kf6 {[%emt 0:00:32]} 38. Kd5 {[%emt 0:02:58]} Ke7 {[%emt 0:00:26]} 39. Kc6 {[%emt 0:00:13] And now b6 would win.} Kd8 $1 {[%emt 0:00:15]} 40. f4 {[%emt 0:00:00]} Rb3 {[%emt 0:00:00] Inhibits Rc3.} 41. b6 {[%emt 0:17:01] b7 would kill now.} Kc8 {[%emt 0:01:52] Against b7+} (41... Rxh3 42. Rd5+ Ke7 43. b7 Rc3+ 44. Kb6 h3 45. b8=Q Rb3+ 46. Rb5 Rxb5+ 47. Kxb5) 42. Ra5 {[%emt 0:04:40][%cal Ra5a8]} Rc3+ {[%emt 0:03:30]} (42... Rxh3 $2 43. Ra8#) 43. Kb5 {[%emt 0:00:25]} Kb8 {[%emt 0:01:30]} 44. Ra7 {[%emt 0:00:26]} Rb3+ {[%emt 0:00:30]} 45. Kc6 {[%emt 0:00:30]} Rc3+ {[%emt 0:00:00]} 46. Kd5 {[%emt 0:04:07]} Rxh3 {[%emt 0:00:00]} 47. Rxf7 {[%emt 0:00:05]} Rg3 {[%emt 0:00:00]} 48. Rh7 {[%emt 0:00:48]} h3 {[%emt 0:02:00]} 49. Ke4 {[%emt 0:01:23]} Kc8 {[%emt 0:00:30]} 50. Ke5 {[%emt 0:00:57]} Kb8 {[%emt 0:00:30]} 51. Ke4 {[%emt 0:00:29]} Kc8 {[%emt 0:00:00] A balanced but interesting game.   Weighted Error Value: White=0.03 (flawless) /Black=0.02 (flawless)} 1/2-1/2

[Event "Turkish Championship 2022"]
[Site "Kemer-Antalya"]
[Date "2022.11.25"]
[Round "1.2"]
[White "Agdelen, Huseyin Can"]
[Black "Koksal, Ege"]
[Result "1/2-1/2"]
[ECO "C43"]
[WhiteElo "2416"]
[BlackElo "2321"]
[Annotator "TA"]
[PlyCount "52"]
[EventDate "2022.11.25"]
[EventCountry "TUR"]
[SourceTitle "playchess.com"]
[Source "ChessBase"]
[SourceQuality "1"]
[TimeControl "40/5400+30:1800+30"]

{[%evp 17,52,39,38,21,31,39,80,38,72,45,67,43,68,9,0,0,0,0,2,9,6,0,0,0,0,0,0,0,0,0,0,0,0,0,0,0,0]} 1. e4 {[%emt 0:01:00]} e5 {[%emt 0:01:00]} 2. Nf3 {[%emt 0:00:30]} Nf6 {[%emt 0:00:00]} 3. d4 {[%emt 0:00:30]} Nxe4 {[%emt 0:00:00]} 4. Bd3 {[%emt 0:00:30]} d5 {[%emt 0:04:30]} 5. Nxe5 {[%emt 0:00:30]} Bd6 {[%emt 0:08:30]} 6. O-O {[%emt 0:01:30]} O-O {[%emt 0:00:30]} 7. c4 {[%emt 0:01:30]} c6 {[%emt 0:19:30]} 8. Nc3 {[%emt 0:03:30]} Nxc3 {[%emt 0:14:30]} 9. bxc3 {[%emt 0:00:00]} Nd7 {[%emt 0:08:30]} 10. f4 {[%emt 0:07:00] C43: Petroff Defence: 3 d4.} ({Reject} 10. Qh5 g6 11. Qe2 Re8 $15) 10... dxc4 {[%emt 0:10:30]} 11. Nxc4 {[%emt 0:08:30]} Be7 {[%emt 0:03:30] [#]} 12. Qf3 $146 {[%emt 0:14:30] White is better.} ({But not} 12. Qh5 Nf6 13. Qf3 c5 $11) ({Predecessor:} 12. Qc2 h6 13. Kh1 c5 14. Bb2 b6 15. Rad1 Qc7 16. d5 Bf6 17. d6 Qd8 18. Be4 {½-½ (44) Fizer,M (1963)-Straka,S (1732) Kezmarok 2022}) 12... Nf6 {[%emt 0:00:30]} 13. Ne5 {[%emt 0:13:30]} c5 {[%emt 0:03:30]} 14. Be3 $1 {[%emt 0:06:30] White is much more active. The black rooks are badly placed.} Qd5 {[%emt 0:02:38]} 15. Qe2 {[%emt 0:02:30]} ({White should play} 15. Qf2 $14) 15... cxd4 $11 {[%emt 0:00:29] The position is equal.} 16. cxd4 {[%emt 0:00:30]} b6 {[%emt 0:02:33]} 17. Rac1 {[%emt 0:12:30]} Bd6 {[%emt 0:05:01]} 18. Bc4 {[%emt 0:10:17]} Qe4 {[%emt 0:00:50]} 19. Bd3 {[%emt 0:03:59]} Qd5 {[%emt 0:00:01]} 20. Bc4 {[%emt 0:03:29]} Qe4 {[%emt 0:00:30]} 21. Bd3 $36 {[%emt 0:00:00][%mdl 2048] White has some pressure.} Qd5 {[%emt 0:00:00]} 22. Bc4 {[%emt 0:00:24]} Qe4 {[%emt 0:00:00]} 23. Bd3 {[%emt 0:00:22]} Qd5 {[%emt 0:00:13]} 24. Bc4 {[%emt 0:00:30]} Qe4 {[%emt 0:00:00]} 25. Bd3 {[%emt 0:00:00]} Qd5 {[%emt 0:00:05]} 26. Bc4 {[%emt 0:00:12]} Qe4 {[%emt 0:00:00] Weighted Error Value: White=0.05 (flawless) /Black=0.05 (flawless)} 1/2-1/2

[Event "Turkish Championship 2022"]
[Site "Kemer-Antalya"]
[Date "2022.11.25"]
[Round "1.3"]
[White "Isik, Alparslan"]
[Black "Yilmazyerli, Mert"]
[Result "0-1"]
[ECO "D53"]
[WhiteElo "2463"]
[BlackElo "2534"]
[Annotator "TA"]
[PlyCount "60"]
[EventDate "2022.11.25"]
[EventCountry "TUR"]
[SourceTitle "playchess.com"]
[Source "ChessBase"]
[SourceQuality "1"]
[TimeControl "40/5400+30:1800+30"]

{[%evp 11,60,5,25,19,27,24,26,0,12,-15,-22,-25,-39,-39,-44,-32,-28,-20,-39,-104,-104,-155,-135,-135,-131,-121,-118,-140,-128,-158,-154,-173,-114,-206,-196,-246,-243,-281,-287,-324,-174,-160,-168,-157,-149,-29982,-29983,-29983,-29984,-29994,-29995]} 1. d4 {[%emt 0:01:00]} Nf6 {[%emt 0:01:00]} 2. c4 {[%emt 0:00:00]} e6 {[%emt 0:00:30]} 3. Nc3 {[%emt 0:00:00]} d5 {[%emt 0:00:00]} 4. Bg5 {[%emt 0:01:30]} Be7 {[%emt 0:00:00]} 5. e3 {[%emt 0:00:30]} O-O {[%emt 0:00:30]} 6. Qc2 {[%emt 0:01:30]} c5 {[%emt 0:07:30]} 7. dxc5 {[%emt 0:03:30] D53: Queen's Gambit Declined: 4 Bg5 Be7: Early deviations.} dxc4 {[%emt 0:01:30]} 8. Bxc4 {[%emt 0:02:30]} Qa5 {[%emt 0:01:30]} 9. Bd3 {[%emt 0:09:30][%cal Od3h7] White wants to play Bxh7+! White has an edge.} h6 {[%emt 0:01:30]} 10. Bh4 {[%emt 0:05:30] [#]} Nc6 $146 {[%emt 0:04:30]} ({Predecessor:} 10... Qxc5 11. Nf3 Nc6 12. a3 Rd8 13. O-O Bd7 14. b4 Qh5 15. Bg3 Rac8 16. Qb3 e5 {0-1 (35) Schreiber,H-Gross,H ICCF corr 1987}) 11. Qa4 {[%emt 0:20:30] Prevents Nb4.} Qxc5 {[%emt 0:02:30]} (11... Bxc5 12. Bxf6 gxf6 13. Qg4+ (13. Qe4 f5 $17) 13... Kh8 14. Qh3 $14) 12. Bxf6 {[%emt 0:08:30]} Bxf6 {[%emt 0:00:30]} 13. Ne4 {[%emt 0:01:30]} Qe7 {[%emt 0:03:30]} 14. Nxf6+ {[%emt 0:01:30]} Qxf6 {[%emt 0:01:30]} 15. Qa3 {[%emt 0:06:30]} (15. Nf3 $15) 15... Ne5 $17 {[%emt 0:07:30]} 16. Be2 {[%emt 0:01:30] [#]} (16. Bh7+ $2 Kxh7 17. Ne2 b6 $1 $19) (16. Ne2 $142) 16... Qg6 $1 {[%emt 0:04:30]} 17. Kf1 {[%emt 0:02:30]} Bd7 {[%emt 0:02:30]} 18. Nf3 {[%emt 0:05:30] [#]} Bc6 $1 {[%emt 0:01:30][%cal Of8d8]} 19. h4 {[%emt 0:07:07] [#]} (19. Rg1 Qf6) 19... Rfd8 $1 {[%emt 0:08:30][%cal Od8d2]} 20. Rh3 {[%emt 0:09:08]} (20. Qc3 Ng4) 20... Bxf3 {[%emt 0:10:30] Black is much more active. The white rooks are badly placed.} 21. Bxf3 {[%emt 0:01:03]} Rd2 {[%emt 0:01:30]} ({Black should try} 21... Qf6 $19 22. Re1 Nxf3 23. Rxf3 Qxh4) 22. Kg1 {[%emt 0:03:29]} (22. Qc3 $17 {only move.} Qd3+ 23. Qxd3 Nxd3 24. Rd1 Rxd1+ 25. Bxd1) 22... Qc2 $19 {[%emt 0:05:30]} 23. Rf1 {[%emt 0:02:32]} (23. b3 $142) 23... Qxb2 {[%emt 0:02:30]} 24. Qa5 {[%emt 0:00:16]} Nd3 {[%emt 0:10:30]} (24... Qxa2 25. Qxe5 Qb2 26. Qa5 $18) 25. Rg3 {[%emt 0:01:26]} Rxf2 {[%emt 0:08:49]} (25... Rc8 $142 {[%cal Rd3f2]} 26. a3 Nxf2) 26. Rd1 {[%emt 0:00:24] [#]} Rf8 $1 {[%emt 0:05:36]} 27. Rxd3 {[%emt 0:03:46] And now Rb3 would win.} Rxf3 $1 {[%emt 0:00:04][%mdl 64] Dancing on a razor blade.} (27... Qxa2 $2 28. Qe5 g6 29. Rd7 $18 (29. Bxb7 $2 {perishes.} Rb2 $19)) 28. Rd8 $2 {[%emt 0:01:17][%mdl 8192]} (28. Rxf3 $17 Qb1+ 29. Kh2 Qxd3 30. Qxa7) 28... Qf2+ {[%emt 0:00:42] Black mates.} 29. Kh1 {[%emt 0:00:10]} Rxg3 {[%emt 0:00:08][%csl Gg3][%cal Rf2g2]} 30. Rxf8+ {[%emt 0:00:30]} Kh7 $1 {[%emt 0:00:00] Weighted Error Value: White=0.52/Black=0.11 (very precise)} 0-1

[Event "Turkish Championship 2022"]
[Site "Kemer-Antalya"]
[Date "2022.11.25"]
[Round "1.4"]
[White "Gokbulut, Julia"]
[Black "Kilic, Eray"]
[Result "0-1"]
[ECO "E68"]
[WhiteElo "1912"]
[BlackElo "2437"]
[Annotator "TA"]
[PlyCount "82"]
[EventDate "2022.11.25"]
[EventCountry "TUR"]
[SourceTitle "playchess.com"]
[Source "ChessBase"]
[SourceQuality "1"]
[TimeControl "40/5400+30:1800+30"]

{[%evp 21,82,25,33,-37,8,9,33,48,46,31,33,40,64,53,60,-31,76,26,60,51,79,77,84,86,99,98,122,130,142,94,89,90,85,88,93,105,87,65,104,84,92,93,94,72,96,0,80,0,0,-164,-159,-154,-136,-370,-363,-290,-335,-1637,-1620,-894,-894,-878,-868]} 1. d4 {[%emt 0:01:00]} Nf6 {[%emt 0:01:00]} 2. c4 {[%emt 0:00:30]} g6 {[%emt 0:00:00]} 3. Nc3 {[%emt 0:00:00]} Bg7 {[%emt 0:00:00]} 4. g3 {[%emt 0:01:00]} O-O {[%emt 0:01:30]} 5. Bg2 {[%emt 0:00:30]} d6 {[%emt 0:00:30]} 6. Nf3 {[%emt 0:00:30]} Nbd7 {[%emt 0:00:30]} 7. O-O {[%emt 0:00:30]} e5 {[%emt 0:00:30]} 8. e4 {[%emt 0:00:30]} exd4 {[%emt 0:00:30]} 9. Nxd4 {[%emt 0:00:00]} Nc5 {[%emt 0:00:00]} 10. h3 {[%emt 0:01:00]} Re8 {[%emt 0:00:00]} 11. Re1 {[%emt 0:00:30]} Bd7 {[%emt 0:00:30]} 12. Qc2 {[%emt 0:01:30] E68: King's Indian: Fianchetto: 6...Nbd7 7 0-0 e5 8 e4.} (12. Bf4 $14) 12... Qc8 {[%emt 0:07:30]} (12... Nfxe4 {with more complications.} 13. Nxe4 Bxd4 14. Bg5 Qc8) 13. Kh2 {[%emt 0:03:30] [#]} Ng4+ $146 {[%emt 0:02:30]} ({Predecessor:} 13... Re5 14. g4 Re8 15. Be3 c6 16. Rad1 Qc7 17. Bf4 h5 18. f3 hxg4 19. hxg4 Nh7 {½-½ (58) Woodward,A (2290)-Chandra,A (2483) Charlotte 2021}) 14. hxg4 {[%emt 0:00:30] Threatens to win with Be3. White is slightly better.} Bxd4 {[%emt 0:00:30]} 15. f3 {[%emt 0:01:30]} Qd8 {[%emt 0:07:30]} 16. Be3 {[%emt 0:20:30]} Be5 {[%emt 0:04:30] Hoping for ...Qh4+.} 17. g5 {[%emt 0:05:30]} h6 {[%emt 0:09:30]} 18. Qd2 {[%emt 0:03:30]} (18. b4 $14 Ne6 19. f4) 18... h5 {[%emt 0:08:30]} (18... hxg5 $1 $15 {keeps the upper hand.} 19. Bxg5 Bxc3 20. bxc3 f6) 19. Bf4 {[%emt 0:07:30]} (19. Nd5 $16) 19... Bc6 {[%emt 0:12:30]} 20. Rad1 {[%emt 0:04:30]} Ne6 {[%emt 0:04:30]} 21. Nd5 {[%emt 0:02:30] Strongly threatening Bxe5.} Bg7 {[%emt 0:08:30]} 22. Be3 {[%emt 0:02:30]} Bxd5 {[%emt 0:02:30]} 23. cxd5 {[%emt 0:00:30]} Nf8 {[%emt 0:00:30]} 24. Rc1 {[%emt 0:00:30]} Nd7 {[%emt 0:01:30]} 25. b4 {[%emt 0:06:30]} (25. f4 $142) 25... Ne5 $16 {[%emt 0:01:30]} 26. a4 {[%emt 0:05:30]} Qd7 {[%emt 0:02:30]} 27. Qd1 {[%emt 0:02:30]} Re7 {[%emt 0:01:30]} 28. Bh3 {[%emt 0:02:30]} Qe8 {[%emt 0:00:00]} 29. Bf1 {[%emt 0:03:30]} c6 {[%emt 0:01:00]} 30. dxc6 {[%emt 0:03:30]} bxc6 {[%emt 0:00:30][%cal Od6d5]} 31. Kg2 {[%emt 0:02:28]} (31. Qxd6 $2 Nxf3+ 32. Kh3 Nxe1 33. Qxc6 Qxc6 34. Rxc6 Rxe4 $19) 31... Rd8 {[%emt 0:01:30]} 32. Qc2 {[%emt 0:03:24]} d5 {[%emt 0:09:19]} 33. exd5 {[%emt 0:07:25]} (33. Bc5 $16) 33... Rxd5 {[%emt 0:02:45]} (33... Ng4 $1 $11 34. fxg4 (34. Bd2 $2 Rxe1 35. Rxe1 Qxe1 $19) 34... Rxe3) 34. Qf2 {[%emt 0:00:58]} ({But not} 34. Bc5 Red7 35. Qe4 Rd2+ 36. Re2 Qd8 $11) (34. Bf2 $16) 34... Qd7 {[%emt 0:02:10]} 35. Rc5 $2 {[%emt 0:02:06]} (35. Bc5 $11 Re6 36. Rc2 (36. Bxa7 Rd2 $15)) 35... Nd3 $19 {[%emt 0:01:16]} 36. Bxd3 {[%emt 0:01:31]} Rxd3 {[%emt 0:00:02]} 37. Rc2 $2 {[%emt 0:00:51] [#] This move loses the game for White.} (37. Bc1 $17) 37... Qe8 $1 {[%emt 0:04:34]} ({And not} 37... Bc3 38. Ree2 $17) 38. Rce2 {[%emt 0:00:22]} Bc3 $1 {[%emt 0:00:50][%csl LRb4,LRe1]} 39. Bd2 {[%emt 0:04:07]} (39. Bc5 Bxe1 40. Rxe7 Qxe7 41. Bxe7 Bxf2 42. Kxf2) 39... Rxe2 {[%emt 0:00:38] Black is clearly winning.} 40. Rxe2 {[%emt 0:00:00] [#]} Qxe2 $3 {[%emt 0:00:11][%mdl 512]} 41. Qxe2 {[%emt 0:01:18]} Rxd2 {[%emt 0:00:15] Weighted Error Value: White=0.55/Black=0.19 (very precise)} 0-1

[Event "Turkish Championship 2022"]
[Site "Kemer-Antalya"]
[Date "2022.11.25"]
[Round "1.5"]
[White "Yilmaz, Mustafa"]
[Black "Ozsakallioglu, Okan"]
[Result "1-0"]
[ECO "D45"]
[WhiteElo "2621"]
[BlackElo "2288"]
[Annotator "TA"]
[PlyCount "75"]
[EventDate "2022.11.25"]
[EventCountry "TUR"]
[SourceTitle "playchess.com"]
[Source "ChessBase"]
[SourceQuality "1"]
[TimeControl "40/5400+30:1800+30"]

{[%evp 15,75,18,18,27,40,14,7,16,29,12,36,29,15,38,33,10,17,18,18,5,8,14,15,8,43,12,16,8,16,-8,0,0,0,0,18,18,18,18,31,19,52,52,81,83,83,99,86,60,54,24,106,110,276,281,279,280,649,644,628,568,592,560]} 1. Nf3 {[%emt 0:01:00]} d5 {[%emt 0:01:00]} 2. c4 {[%emt 0:00:00]} c6 {[%emt 0:00:30]} 3. e3 {[%emt 0:00:00]} Nf6 {[%emt 0:00:30]} 4. Nc3 {[%emt 0:00:00]} e6 {[%emt 0:00:00]} 5. d4 {[%emt 0:01:00]} a6 {[%emt 0:01:00]} 6. b3 {[%emt 0:02:30]} Bb4 {[%emt 0:00:30]} 7. Bd2 {[%emt 0:00:30]} Nbd7 {[%emt 0:04:30]} 8. Bd3 {[%emt 0:00:30]} O-O {[%emt 0:02:30]} 9. O-O {[%emt 0:00:30][%cal Oc3d5] D45: Semi-Slav: 5 e3.} Bd6 {[%emt 0:00:00]} 10. Qc2 {[%emt 0:13:30]} e5 {[%emt 0:03:00]} 11. cxd5 {[%emt 0:06:30] The position is equal.} cxd5 {[%emt 0:00:30]} 12. e4 {[%emt 0:03:30]} dxe4 {[%emt 0:26:30]} 13. Nxe4 {[%emt 0:03:30]} Nxe4 {[%emt 0:00:30]} 14. Bxe4 {[%emt 0:00:30]} h6 {[%emt 0:00:30]} 15. Bc3 {[%emt 0:08:30][%cal Rd4e5]} exd4 {[%emt 0:08:30] [#]} 16. Bh7+ $146 {[%emt 0:01:30]} ({Predecessor:} 16. Bxd4 Nf6 17. Bf5 Qa5 18. Nh4 Be5 19. Bxe5 Qxe5 20. Rfe1 Qd4 21. g3 Kh8 22. Rad1 {½-½ (61) L'Ami,E (2642)-Seel,C (2474) Netherlands 2013}) 16... Kh8 {[%emt 0:00:30]} 17. Bxd4 {[%emt 0:00:00]} Nf6 {[%emt 0:03:30]} 18. Bf5 {[%emt 0:01:00]} Qa5 {[%emt 0:06:30]} 19. Nh4 {[%emt 0:04:30][%cal Bf3h4,Bh4f5,Bf5d6][%mdl 32] Threatens to win with Bxf6.} Be5 {[%emt 0:08:30]} 20. Bxe5 {[%emt 0:23:30]} (20. Bxc8 {feels hotter.} Raxc8 21. Qf5 Rfe8 22. Rae1) 20... Qxe5 {[%emt 0:01:30]} 21. Rae1 {[%emt 0:02:30]} Qa5 {[%emt 0:02:30]} 22. Qb2 {[%emt 0:04:30]} Qb4 {[%emt 0:07:30]} 23. g3 {[%emt 0:02:30]} Bxf5 {[%emt 0:01:30]} 24. Nxf5 {[%emt 0:00:00]} Qg4 {[%emt 0:00:30]} 25. Nd6 {[%emt 0:02:31][%cal Oe1d1]} Qd7 {[%emt 0:02:40]} 26. Rd1 {[%emt 0:01:01]} b5 {[%emt 0:03:12]} 27. Rd4 {[%emt 0:02:03]} Qe6 {[%emt 0:02:12]} 28. Qd2 {[%emt 0:02:07]} Ng4 {[%emt 0:04:59]} 29. Re1 {[%emt 0:02:44]} Qg6 {[%emt 0:01:58]} 30. h3 {[%emt 0:02:48]} Nf6 {[%emt 0:00:04]} 31. Kg2 {[%emt 0:04:31] White has more active pieces.} Ra7 {[%emt 0:01:49]} 32. Re5 {[%emt 0:02:38]} Rc7 {[%emt 0:03:45] [#]} (32... Kh7 $11) 33. Nf5 $1 $36 {[%emt 0:00:33][%mdl 2048] Keeping Black busy.} Ng8 $2 {[%emt 0:00:20] Loses the game.} (33... Re8 $16 {was necessary.} 34. Qe3 (34. Rd8 Kh7 $16) 34... Kh7) 34. Rd6 $18 {[%emt 0:00:47][%cal Bd4d6,Bd6a6,Ba6g6][%mdl 32]} f6 {[%emt 0:01:08]} 35. Rxa6 {[%emt 0:01:16]} fxe5 $2 {[%emt 0:01:55]} (35... Kh7 36. Qd5 Rb8) 36. Rxg6 {[%emt 0:00:30] White is clearly winning.} Rxf5 {[%emt 0:00:00]} 37. Re6 {[%emt 0:00:37]} Rcf7 {[%emt 0:00:34]} 38. Qe2 {[%emt 0:00:35] Weighted Error Value: White=0.10 (very precise) /Black=0.35} 1-0